fUST/lending_fUST_20251230
["ID","MTS","AMOUNT","RATE_DAILY","PERIOD"]
[400094401,1767096645124,-4079.53923045,0.00024053,2]
[400094402,1767096645136,-272.83182917,0.00024053,2]
[400094422,1767096646140,-989.2892692,0.00024053,2]
[400094423,1767096646153,-447.9046151,0.00024053,2]
[400094424,1767096646167,-898.5520021,0.00024053,2]
[400094425,1767096646178,-377.8052413,0.00024139,2]
[400094426,1767096646187,-135.59632849,0.00024139,2]
[400094430,1767097239731,554.74107488,0.00028767,120]
[400094432,1767097507158,701.0,0.0002512,120]
[400094433,1767097508503,701.0,0.00026376,120]
[400094434,1767097509799,701.0,0.00027695,120]
[400094454,1767097811360,420.0,0.0002514,120]
[400094455,1767097812669,420.0,0.00026397,120]
[400094456,1767097814102,420.0,0.00027717,120]
[400094484,1767097831937,-5000.0,0.00013562,2]
[400094486,1767097831946,-613.0,0.00013562,2]
[400094488,1767097831956,-562.173801,0.00013699,2]
[400094490,1767097831965,-437.25219835,0.00015,2]
[400094492,1767097831974,-177.0,0.0001563,2]
[400094494,1767097831983,-204.0,0.0001763,2]
[400094496,1767097831993,-231.0,0.0001963,2]
[400094498,1767097832003,-562.173801,0.00020187,2]
[400094500,1767097832012,-300.0,0.0002069,2]
[400094502,1767097832021,-438.62150695,0.00020691,2]
[400094504,1767097832030,-523.57038104,0.00020691,2]
[400094506,1767097832039,-941.48425919,0.00020691,2]
[400094508,1767097832049,-689.88097267,0.00021151,2]
[400094510,1767097832058,-258.0,0.0002163,2]
[400094512,1767097832067,-1200.0,0.00022263,2]
[400094514,1767097832076,-300.0,0.00022513,2]
[400094516,1767097832086,-2412.02793957,0.00022697,2]
[400094518,1767097832095,-273.32077286,0.00023,2]
[400094520,1767097832104,-842.567233,0.00023216,2]
[400094522,1767097832114,-443.0803735,0.00023566,2]
[400094524,1767097832125,-56.9196265,0.00023566,2]
[400094526,1767097832135,-285.0,0.0002363,2]
[400094528,1767097832144,-300.23,0.00023836,8]
[400094530,1767097832153,-400.0,0.00024,2]
[400094532,1767097832162,-479.16384302,0.0002408,2]
[400094534,1767097832174,-87.34261088,0.0002408,2]
[400094536,1767097832183,-170.3326979,0.0002408,2]
[400094538,1767097832192,-256.00582958,0.0002408,2]
[400094559,1767097838339,-801.76649582,0.0002408,2]
[400094560,1767097838349,-166.0,0.00024139,3]
[400094561,1767097838359,-166.0,0.00024139,3]
[400094562,1767097838368,-166.0,0.00024139,3]
[400094563,1767097838378,-163.0,0.00024139,3]
[400094564,1767097838387,-152.0,0.00024139,3]
[400094565,1767097838396,-152.0,0.00024139,3]
[400094566,1767097838405,-184.98755332,0.00024139,3]
[400094567,1767097838414,-152.0,0.00024139,3]
[400094568,1767097838424,-152.93364206,0.00024139,3]
[400094569,1767097838433,-1041.66666667,0.0002416,2]
[400094570,1767097838442,-500.0,0.00024368,2]
[400094571,1767097838452,-328.0,0.00024384,9]
[400094573,1767097838461,-486.49474354,0.00024502,2]
[400094575,1767097838474,-13.50525646,0.00024502,2]
[400094577,1767097838484,-500.0,0.0002453,2]
[400094578,1767097838493,-158.12652114,0.0002453,2]
[400094579,1767097838502,-78.3682224,0.00024534,2]
[400094580,1767097838513,-74.0030556,0.00024534,2]
[400094581,1767097838523,-582.73,0.00024534,2]
[400094582,1767097838532,-622.76,0.00024534,2]
[400094583,1767097838542,-439.0,0.00024534,2]
[400094584,1767097838552,-178.44845368,0.00024535,2]
[400094585,1767097840204,-21.55154632,0.00024535,2]
[400094586,1767097840213,-500.0,0.00024535,2]
[400094587,1767097840222,-500.0,0.00024535,2]
[400094588,1767097840231,-500.0,0.00024535,2]
[400094589,1767097840240,-566.0,0.00024592,2]
[400094590,1767097840249,-500.0,0.00024625,2]
[400094592,1767097840260,-1000.0,0.00024625,2]
[400094593,1767097840392,-500.0,0.00024625,2]
[400094594,1767097840402,-181.08010149,0.00024625,2]
[400094595,1767097840412,-500.0,0.00024625,2]
[400094596,1767097840422,-151.0,0.00024625,2]
[400094597,1767097840431,-1000.0,0.00024625,2]
[400094598,1767097840439,-500.0,0.00024625,2]
[400094599,1767097840448,-500.0,0.00024625,2]
[400094600,1767097840457,-151.0,0.00024625,2]
[400094601,1767097840466,-1000.0,0.00024625,2]
[400094602,1767097840476,-500.0,0.00024625,2]
[400094603,1767097840485,-500.0,0.00024625,2]
[400094604,1767097840494,-151.0,0.00024625,2]
[400094605,1767097840503,-1000.0,0.00024625,2]
[400094606,1767097840512,-530.52894229,0.00024625,2]
[400094607,1767097840522,-500.0,0.00024625,2]
[400094608,1767097840531,-151.0,0.00024625,2]
[400094609,1767097840540,-1000.0,0.00024625,2]
[400094610,1767097840550,-500.0,0.00024625,2]
[400094611,1767097840559,-151.0,0.00024625,2]
[400094612,1767097840568,-1000.0,0.00024625,2]
[400094613,1767097840577,-500.0,0.00024625,2]
[400094614,1767097840587,-151.0,0.00024625,2]
[400094615,1767097840596,-1000.0,0.00024625,2]
[400094616,1767097840605,-500.0,0.00024625,2]
[400094617,1767097840614,-151.0,0.00024625,2]
[400094618,1767097840624,-1000.0,0.00024625,2]
[400094619,1767097840634,-500.0,0.00024625,2]
[400094620,1767097840643,-151.0,0.00024625,2]
[400094621,1767097840653,-1000.0,0.00024625,2]
[400094622,1767097840663,-500.0,0.00024625,2]
[400094623,1767097840672,-151.0,0.00024625,2]
[400094624,1767097840681,-768.70154941,0.00024625,2]
[400094625,1767097840690,-500.0,0.00024625,2]
[400094626,1767097840699,-151.0,0.00024625,2]
[400094627,1767097840708,-500.0,0.00024625,2]
[400094628,1767097840717,-151.0,0.00024625,2]
[400094629,1767097840726,-500.0,0.00024625,2]
[400094630,1767097840735,-496.47127164,0.00024625,2]
[400094631,1767097840744,-151.0,0.00024625,2]
[400094632,1767097840756,-250.0,0.00024625,2]
[400094633,1767097840766,-151.0,0.00024625,2]
[400094634,1767097840775,-2398.4119403,0.00024625,2]
[400094635,1767097840784,-250.0,0.00024625,2]
[400094636,1767097840793,-151.0,0.00024625,2]
[400094637,1767097840802,-500.0,0.00024625,2]
[400094638,1767097840811,-250.0,0.00024625,2]
[400094639,1767097840820,-151.0,0.00024625,2]
[400094640,1767097840829,-500.0,0.00024625,2]
[400094641,1767097840838,-250.0,0.00024625,2]
[400094642,1767097840847,-500.0,0.00024625,2]
[400094643,1767097840856,-250.0,0.00024625,2]
[400094644,1767097840866,-250.0,0.00024625,2]
[400094645,1767097840874,-250.0,0.00024625,2]
[400094646,1767097840883,-250.0,0.00024625,2]
[400094647,1767097840892,-250.0,0.00024625,2]
[400094648,1767097840901,-250.0,0.00024625,2]
[400094649,1767097840910,-250.0,0.00024625,2]
[400094650,1767097840919,-250.0,0.00024625,2]
[400094651,1767097840929,-250.0,0.00024625,2]
[400094652,1767097840937,-250.0,0.00024625,2]
[400094653,1767097840946,-250.0,0.00024625,2]
[400094654,1767097840955,-250.0,0.00024625,2]
[400094655,1767097840964,-250.0,0.00024625,2]
[400094656,1767097840973,-250.0,0.00024625,2]
[400094657,1767097840982,-250.0,0.00024625,2]
[400094658,1767097840991,-250.0,0.00024625,2]
[400094659,1767097840999,-250.0,0.00024625,2]
[400094660,1767097841008,-250.0,0.00024625,2]
[400094661,1767097841017,-376.2058582,0.00024625,2]
[400094662,1767097841026,-250.0,0.00024625,2]
[400094663,1767097841036,-250.0,0.00024625,2]
[400094664,1767097841045,-151.0,0.00024625,2]
[400094665,1767097841054,-151.0,0.00024625,2]
[400094666,1767097841063,-250.0,0.00024625,2]
[400094667,1767097841072,-151.0,0.00024625,2]
[400094668,1767097841081,-151.0,0.00024625,2]
[400094669,1767097841090,-250.0,0.00024625,2]
[400094670,1767097841099,-152.25749732,0.00024625,2]
[400094671,1767097841108,-250.0,0.00024625,2]
[400094672,1767097841117,-250.0,0.00024625,2]
[400094673,1767097841126,-251.85638758,0.00024625,2]
[400094674,1767097841135,-151.0,0.00024625,2]
[400094675,1767097841144,-550.0,0.00024667,2]
[400094676,1767097841152,-3972.26912243,0.00024702,2]
[400094677,1767097841161,-500.0,0.00024802,2]
[400094678,1767097841171,-500.0,0.00024802,2]
[400094679,1767097841180,-500.0,0.00024802,2]
[400094680,1767097841188,-500.0,0.00024802,2]
[400094681,1767097841197,-500.0,0.00024802,2]
[400094682,1767097841206,-500.0,0.00024802,2]
[400094683,1767097841215,-500.0,0.00024802,2]
[400094684,1767097841224,-500.0,0.00024802,2]
[400094685,1767097841234,-500.0,0.00024802,2]
[400094686,1767097841242,-500.0,0.00024802,2]
[400094687,1767097841251,-500.0,0.00024802,2]
[400094688,1767097841261,-500.0,0.00024802,2]
[400094689,1767097841271,-500.0,0.00024802,2]
[400094690,1767097841280,-500.0,0.00024802,2]
[400094691,1767097841290,-500.0,0.00024802,2]
[400094692,1767097841299,-500.0,0.00024802,2]
[400094693,1767097841309,-500.0,0.00024802,2]
[400094694,1767097841318,-500.0,0.00024802,2]
[400094695,1767097841327,-500.0,0.00024802,2]
[400094696,1767097841336,-500.0,0.00024802,2]
[400094697,1767097841345,-500.0,0.00024802,2]
[400094698,1767097841355,-500.0,0.00024802,2]
[400094699,1767097841364,-500.0,0.00024802,2]
[400094700,1767097841373,-237.24377605,0.00024802,2]
[400094701,1767097841382,-558.40009108,0.00024802,2]
[400094702,1767097841391,-500.0,0.00024802,2]
[400094703,1767097841401,-500.0,0.00024802,2]
[400094704,1767097841411,-500.0,0.00024802,2]
[400094705,1767097841421,-322.89064775,0.00024802,2]
[400094706,1767097841431,-500.0,0.00024802,2]
[400094707,1767097841440,-500.0,0.00024802,2]
[400094708,1767097841450,-500.0,0.00024802,2]
[400094709,1767097841460,-475.12156557,0.00024802,2]
[400094710,1767097841470,-500.0,0.00024802,2]
[400094711,1767097841480,-500.0,0.00024802,2]
[400094712,1767097841490,-299.9901364,0.00024802,2]
[400094713,1767097841500,-500.0,0.00024802,2]
[400094714,1767097841510,-500.0,0.00024802,2]
[400094715,1767097841519,-500.0,0.00024802,2]
[400094716,1767097841528,-500.0,0.00024802,2]
[400094717,1767097841538,-500.0,0.00024802,2]
[400094718,1767097841547,-500.0,0.00024802,2]
[400094719,1767097841556,-500.0,0.00024802,2]
[400094720,1767097841565,-500.0,0.00024802,2]
[400094721,1767097841575,-327.29991541,0.00024802,2]
[400094731,1767097844146,-172.70008459,0.00024802,2]
[400094732,1767097844156,-275.01350728,0.00024802,2]
[400094733,1767097844165,-204.37366711,0.00024804,2]
[400094734,1767097844174,-582.73,0.00024808,2]
[400094735,1767097844183,-622.76,0.00024808,2]
[400094736,1767097844192,-200.0,0.00024809,2]
[400094737,1767097844201,-500.0,0.00024809,2]
[400094738,1767097844210,-500.0,0.00024809,2]
[400094739,1767097844219,-576.92380782,0.00024809,2]
[400094740,1767097844228,-600.0,0.00024849,10]
[400094741,1767097844237,-842.567233,0.00024916,2]
[400094742,1767097844246,-439.0,0.00024957,7]
[400094743,1767097844255,-170.95,0.0002497,10]
[400094744,1767097844265,-1000.0,0.0002498,2]
[400094745,1767097844274,-325.99,0.0002498,10]
[400094746,1767097844283,-5566.88290453,0.0002498,2]
[400094747,1767097844792,-787.38445668,0.0002498,2]
[400094752,1767097846120,-13.38977542,0.0002498,2]
[400094753,1767097846131,-652.0,0.0002498,2]
[400094754,1767097846142,-1660.6479285,0.0002498,2]
[400094755,1767097846151,-759.62858639,0.0002498,2]
[400094756,1767097846160,-151.0,0.0002499,7]
[400094757,1767097846169,-151.0,0.0002499,7]
[400094758,1767097846178,-154.47396,0.0002499,7]
[400094759,1767097846188,-151.0,0.0002499,7]
[400094760,1767097846198,-151.0,0.0002499,7]
[400094761,1767097846207,-151.0,0.0002499,7]
[400094762,1767097846216,-151.0,0.0002499,7]
[400094763,1767097846225,-151.0,0.0002499,7]
[400094764,1767097846234,-151.0,0.0002499,7]
[400094765,1767097846244,-151.0,0.0002499,7]
[400094766,1767097846253,-151.0,0.0002499,7]
[400094767,1767097846262,-151.0,0.0002499,7]
[400094768,1767097846271,-151.0,0.0002499,7]
[400094769,1767097846280,-151.0,0.0002499,7]
[400094770,1767097846290,-151.0,0.0002499,7]
[400094771,1767097846300,-113.02674818,0.0002499,7]
[400094772,1767097846312,-37.97325182,0.0002499,7]
[400094773,1767097846321,-151.0,0.0002499,7]
[400094774,1767097846330,-175.83308,0.0002499,7]
[400094775,1767097846339,-247.576032,0.0002499,7]
[400094776,1767097846348,-151.0,0.0002499,7]
[400094777,1767097846357,-151.0,0.0002499,7]
[400094778,1767097846366,-151.0,0.0002499,7]
[400094779,1767097846375,-151.0,0.0002499,7]
[400094780,1767097846384,-151.0,0.0002499,7]
[400094781,1767097846394,-151.0,0.0002499,7]
[400094782,1767097846403,-151.0,0.0002499,7]
[400094783,1767097846413,-151.0,0.0002499,7]
[400094784,1767097846423,-151.0,0.0002499,7]
[400094785,1767097846432,-151.0,0.0002499,7]
[400094786,1767097846441,-169.532124,0.0002499,7]
[400094787,1767097846451,-1052.71807157,0.0002499,2]
[400094788,1767098109682,252.0,0.00025356,120]
[400094789,1767098110920,252.0,0.00026624,120]
[400094790,1767098112142,252.0,0.00027955,120]
[400094791,1767098409750,168.0,0.00025405,120]
[400094792,1767098411032,168.0,0.00026675,120]
[400094793,1767098412326,168.0,0.00028009,120]
[400094807,1767098708063,169.0,0.0002543,120]
[400094808,1767098709580,169.0,0.00026701,120]
[400094809,1767098710804,169.0,0.00028037,120]
[400094833,1767099007836,171.0,0.00025457,120]
[400094854,1767099032144,-334.34609994,0.0002334,2]
[400094867,1767099032154,-28.13197203,0.0002334,2]
[400094870,1767099032285,-725.22320192,0.0002334,2]
[400094872,1767099032297,-31.64482605,0.0002334,2]
[400094873,1767099032306,-194.8559792,0.00023341,2]
[400094875,1767099032316,-330.75919475,0.00023602,2]
[400094898,1767099038092,-710.90747192,0.00023602,2]
[400094899,1767099038106,-500.0,0.00023923,2]
[400094900,1767099038116,-500.0,0.00024003,2]
[400094901,1767099038126,-200.0,0.00024159,2]
[400094902,1767099038136,-500.0,0.00024159,2]
[400094903,1767099038145,-687.0,0.00024207,2]
[400094904,1767099038156,-5888.0,0.00024208,2]
[400094905,1767099038165,-293.41815378,0.00024267,6]
[400094906,1767099038175,-2398.4119403,0.00024313,2]
[400094907,1767099038185,-271.66,0.00024321,10]
[400094908,1767099038196,-10000.0,0.00024328,2]
[400094909,1767099038206,-500.0,0.00024329,2]
[400094910,1767099038216,-202.54340531,0.00024329,2]
[400094911,1767099038225,-500.0,0.00024329,2]
[400094912,1767099038236,-500.0,0.00024329,2]
[400094913,1767099038246,-500.0,0.00024329,2]
[400094914,1767099038256,-451.41632946,0.00024329,2]
[400094915,1767099038265,-500.0,0.00024329,2]
[400094916,1767099038275,-490.73896984,0.00024329,2]
[400094917,1767099038285,-500.0,0.00024329,2]
[400094918,1767099038294,-500.0,0.00024329,2]
[400094919,1767099038303,-500.0,0.00024329,2]
[400094920,1767099038312,-455.10128376,0.00024329,2]
[400094921,1767099038322,-500.0,0.00024329,2]
[400094922,1767099038331,-500.0,0.00024329,2]
[400094923,1767099038342,-500.0,0.00024329,2]
[400094924,1767099038351,-409.7887229,0.00024329,2]
[400094925,1767099038361,-500.0,0.00024329,2]
[400094926,1767099038370,-500.0,0.00024329,2]
[400094927,1767099038380,-500.0,0.00024329,2]
[400094928,1767099038389,-500.0,0.00024329,2]
[400094929,1767099038399,-500.0,0.00024329,2]
[400094930,1767099038408,-500.0,0.0002433,2]
[400094931,1767099038418,-463.78553694,0.0002433,2]
[400094932,1767099038427,-546.99550356,0.0002433,2]
[400094933,1767099038437,-546.99550356,0.0002433,2]
[400094934,1767099038446,-546.99550356,0.0002433,2]
[400094935,1767099038456,-546.99550356,0.0002433,2]
[400094936,1767099038466,-500.0,0.0002433,2]
[400094937,1767099038475,-546.99550356,0.0002433,2]
[400094938,1767099038484,-311.84465589,0.0002433,2]
[400094939,1767099038494,-546.99550356,0.0002433,2]
[400094940,1767099038503,-546.99550356,0.0002433,2]
[400094941,1767099038513,-546.99550356,0.0002433,2]
[400094942,1767099038522,-546.99550356,0.0002433,2]
[400094943,1767099038532,-546.99550356,0.0002433,2]
[400094944,1767099038542,-546.99550356,0.0002433,2]
[400094945,1767099038551,-546.99550356,0.0002433,2]
[400094946,1767099038561,-546.99550356,0.0002433,2]
[400094947,1767099038571,-546.99550356,0.0002433,2]
[400094948,1767099038580,-546.99550356,0.0002433,2]
[400094949,1767099038590,-568.03379216,0.0002433,2]
[400094950,1767099038599,-568.03379216,0.0002433,2]
[400094951,1767099038609,-568.03379216,0.0002433,2]
[400094952,1767099038618,-568.03379216,0.0002433,2]
[400094953,1767099038628,-568.03379216,0.0002433,2]
[400094954,1767099038638,-568.03379216,0.0002433,2]
[400094955,1767099038648,-568.03379216,0.0002433,2]
[400094956,1767099038657,-568.03379216,0.0002433,2]
[400094957,1767099038667,-714.77585515,0.0002433,2]
[400094958,1767099038676,-714.77585515,0.0002433,2]
[400094959,1767099038685,-714.77585515,0.0002433,2]
[400094960,1767099038695,-3475.73548217,0.0002433,2]
[400094961,1767099038705,-151.0,0.0002433,2]
[400094962,1767099038714,-844.206805,0.0002433,2]
[400094963,1767099038723,-844.206805,0.0002433,2]
[400094964,1767099038733,-844.206805,0.0002433,2]
[400094965,1767099038743,-844.206805,0.0002433,2]
[400094966,1767099038753,-844.206805,0.0002433,2]
[400094967,1767099038762,-844.206805,0.0002433,2]
[400094968,1767099038771,-844.206805,0.0002433,2]
[400094969,1767099038781,-844.206805,0.0002433,2]
[400094970,1767099038791,-400.122808,0.0002433,2]
[400094971,1767099038800,-400.122808,0.0002433,2]
[400094972,1767099038809,-400.122808,0.0002433,2]
[400094973,1767099038819,-400.122808,0.0002433,2]
[400094974,1767099038828,-400.122808,0.0002433,2]
[400094975,1767099038842,-400.122808,0.0002433,2]
[400094976,1767099038852,-400.122808,0.0002433,2]
[400094977,1767099038862,-400.122808,0.0002433,2]
[400094978,1767099038872,-151.0,0.0002433,2]
[400094979,1767099038881,-151.0,0.0002433,2]
[400094980,1767099038891,-151.0,0.0002433,2]
[400094981,1767099038900,-151.0,0.0002433,2]
[400094982,1767099038910,-151.0,0.0002433,2]
[400094983,1767099038919,-219.903846,0.0002433,2]
[400094984,1767099038928,-899142.69726658,0.00024331,2]
[400094985,1767099038941,-2129.12289752,0.00024331,2]
[400094986,1767099038952,-406.00179008,0.00024331,2]
[400094987,1767099038963,-468.50743035,0.00024331,2]
[400094988,1767099038974,-97853.67061547,0.00024331,2]
[400094989,1767099038984,-844.206805,0.00024331,2]
[400094990,1767099038994,-844.206805,0.00024331,2]
[400094991,1767099039005,-844.206805,0.00024331,2]
[400094992,1767099039015,-844.206805,0.00024331,2]
[400094993,1767099039025,-400.122808,0.00024331,2]
[400094994,1767099039035,-400.122808,0.00024331,2]
[400094995,1767099039045,-400.122808,0.00024331,2]
[400094996,1767099039055,-400.122808,0.00024331,2]
[400094997,1767099039064,-151.0,0.00024331,2]
[400094998,1767099039073,-960.27279478,0.00024334,2]
[400094999,1767099039082,-1808.12358725,0.00024334,2]
[400095000,1767099039094,-500.0,0.00024336,2]
[400095001,1767099039104,-500.0,0.00024367,2]
[400095002,1767099039113,-500.0,0.00024367,2]
[400095003,1767099039122,-531.9,0.00024367,2]
[400095004,1767099039131,-333.0,0.00024391,2]
[400095005,1767099039142,-151.0,0.000244,6]
[400095006,1767099039151,-151.0,0.000244,7]
[400095007,1767099039161,-151.0,0.000244,5]
[400095008,1767099039171,-151.0,0.000244,5]
[400095009,1767099039180,-151.0,0.000244,8]
[400095010,1767099039189,-212.855881,0.00024415,2]
[400095011,1767099039199,-844.206805,0.00024419,2]
[400095012,1767099039209,-844.206805,0.00024419,2]
[400095013,1767099039218,-844.206805,0.00024419,2]
[400095014,1767099039227,-844.206805,0.00024419,2]
[400095015,1767099039236,-400.122808,0.00024419,2]
[400095016,1767099039245,-400.122808,0.00024419,2]
[400095017,1767099039254,-400.122808,0.00024419,2]
[400095018,1767099039264,-400.122808,0.00024419,2]
[400095019,1767099039273,-151.0,0.00024419,2]
[400095020,1767099039283,-308.77706616,0.00024419,2]
[400095021,1767099039292,-151.0,0.00024419,2]
[400095022,1767099039302,-151.0,0.00024419,2]
[400095023,1767099039311,-151.0,0.00024419,2]
[400095024,1767099039321,-151.0,0.00024419,2]
[400095025,1767099039330,-151.0,0.00024419,2]
[400095026,1767099039339,-151.0,0.00024419,2]
[400095027,1767099039348,-181.08010149,0.00024419,2]
[400095028,1767099039357,-151.0,0.00024419,2]
[400095029,1767099039367,-151.0,0.00024419,2]
[400095030,1767099039376,-151.0,0.00024419,2]
[400095031,1767099039386,-151.0,0.00024419,2]
[400095032,1767099039396,-151.0,0.00024419,2]
[400095033,1767099039406,-500.0,0.00024419,2]
[400095034,1767099039415,-151.0,0.00024419,2]
[400095035,1767099039425,-500.0,0.00024419,2]
[400095036,1767099039434,-151.0,0.00024419,2]
[400095037,1767099039443,-500.0,0.00024419,2]
[400095038,1767099039452,-151.0,0.00024419,2]
[400095039,1767099039461,-500.0,0.00024419,2]
[400095040,1767099039471,-500.0,0.00024419,2]
[400095041,1767099039480,-496.47127164,0.00024419,2]
[400095042,1767099039489,-500.0,0.00024419,2]
[400095043,1767099039503,-151.0,0.00024419,2]
[400095044,1767099039512,-500.0,0.00024419,2]
[400095045,1767099039523,-500.0,0.00024419,2]
[400095046,1767099039532,-500.0,0.00024419,2]
[400095047,1767099039541,-500.0,0.00024419,2]
[400095048,1767099039551,-500.0,0.00024419,2]
[400095049,1767099039560,-500.0,0.00024419,2]
[400095050,1767099039570,-500.0,0.00024419,2]
[400095051,1767099039579,-500.0,0.00024419,2]
[400095052,1767099039588,-500.0,0.00024419,2]
[400095053,1767099039598,-188.87914661,0.00024419,2]
[400095054,1767099039607,-561.26,0.0002443,2]
[400095055,1767099039616,-151.0,0.0002443,2]
[400095056,1767099039626,-151.0,0.0002443,2]
[400095057,1767099039635,-151.0,0.0002443,2]
[400095058,1767099039644,-151.0,0.0002443,2]
[400095059,1767099039654,-151.0,0.0002443,2]
[400095060,1767099039663,-151.0,0.0002443,2]
[400095061,1767099039672,-151.0,0.0002443,2]
[400095062,1767099039682,-153.832417,0.0002443,2]
[400095063,1767099039692,-187.922135,0.0002443,2]
[400095064,1767099039701,-686.18,0.0002443,2]
[400095065,1767099039710,-151.0,0.0002443,2]
[400095066,1767099039719,-151.0,0.0002443,2]
[400095067,1767099039729,-193.313222,0.0002443,2]
[400095068,1767099039738,-153.964995,0.0002443,2]
[400095069,1767099039748,-670.5,0.0002443,2]
[400095070,1767099039757,-844.206805,0.0002443,2]
[400095071,1767099039766,-844.206805,0.0002443,2]
[400095072,1767099039776,-844.206805,0.0002443,2]
[400095073,1767099039786,-844.206805,0.0002443,2]
[400095074,1767099039795,-400.122808,0.0002443,2]
[400095075,1767099039805,-400.122808,0.0002443,2]
[400095076,1767099039815,-400.122808,0.0002443,2]
[400095077,1767099039825,-400.122806,0.0002443,2]
[400095078,1767099039835,-230.327,0.00024431,7]
[400095079,1767099039845,-183.167,0.00024431,7]
[400095080,1767099039854,-151.0,0.00024431,2]
[400095081,1767099039864,-151.0,0.00024431,2]
[400095082,1767099039873,-151.0,0.00024431,2]
[400095083,1767099039882,-155.034769,0.00024431,2]
[400095084,1767099039892,-151.0,0.00024431,2]
[400095085,1767099039902,-293.088826,0.00024431,2]
[400095087,1767099039912,-151.0,0.00024431,2]
[400095089,1767099039921,-151.0,0.00024431,2]
[400095091,1767099039930,-169.771968,0.00024431,2]
[400095092,1767099039939,-151.0,0.00024431,2]
[400095094,1767099039948,-151.0,0.00024431,2]
[400095095,1767099039958,-151.0,0.00024431,2]
[400095096,1767099039967,-151.0,0.00024431,2]
[400095097,1767099039977,-151.0,0.00024431,2]
[400095098,1767099039986,-151.0,0.00024431,2]
[400095099,1767099039996,-151.0,0.00024431,2]
[400095100,1767099040006,-151.0,0.00024431,2]
[400095101,1767099040016,-151.0,0.00024432,2]
[400095102,1767099040025,-151.0,0.00024432,2]
[400095103,1767099040034,-151.0,0.00024432,2]
[400095104,1767099040044,-151.0,0.00024432,2]
[400095105,1767099040054,-151.0,0.00024432,2]
[400095106,1767099040063,-151.0,0.00024432,2]
[400095108,1767099040072,-986.161584,0.00024432,2]
[400095110,1767099040081,-986.161584,0.00024432,2]
[400095111,1767099040092,-986.161584,0.00024432,2]
[400095113,1767099040104,-986.161584,0.00024432,2]
[400095114,1767099040113,-151.230321,0.00024432,2]
[400095116,1767099040123,-151.0,0.00024432,2]
[400095118,1767099040135,-151.0,0.00024432,2]
[400095120,1767099040144,-151.0,0.00024432,2]
[400095122,1767099040154,-151.0,0.00024432,2]
[400095124,1767099040163,-151.0,0.00024432,2]
[400095125,1767099040174,-203.497062,0.00024432,2]
[400095127,1767099040183,-158.086969,0.00024432,2]
[400095129,1767099040192,-151.0,0.00024432,2]
[400095131,1767099040202,-153.033305,0.00024432,2]
[400095133,1767099040211,-238.1177,0.00024432,2]
[400095135,1767099040220,-238.1177,0.00024432,2]
[400095137,1767099040232,-238.1177,0.00024432,2]
[400095139,1767099040241,-238.1177,0.00024432,2]
[400095141,1767099040250,-151.0,0.00024432,2]
[400095143,1767099040259,-151.0,0.00024432,2]
[400095145,1767099040268,-151.0,0.00024432,2]
[400095147,1767099040277,-151.649323,0.00024432,2]
[400095149,1767099040291,-151.0,0.00024432,2]
[400095151,1767099040300,-151.0,0.00024432,2]
[400095153,1767099040309,-151.0,0.00024432,2]